fUST/lending_fUST_20250715
["ID","MTS","AMOUNT","RATE_DAILY","PERIOD"]
[372134273,1752534641397,-460.0,0.00021917,3]
[372134274,1752534641407,-460.0,0.00021917,3]
[372134275,1752534641416,-460.0,0.00021917,3]
[372134276,1752534641426,-460.0,0.00021917,3]
[372134277,1752534641439,-998.05,0.00021917,3]
[372134278,1752534641448,-460.0,0.00021917,3]
[372134279,1752534641458,-460.0,0.00021917,3]
[372134280,1752534641467,-460.0,0.00021917,3]
[372134281,1752534641476,-460.0,0.00021917,3]
[372134282,1752534641487,-679.45,0.00021917,3]
[372134283,1752534641496,-460.0,0.00021917,3]
[372134284,1752534641505,-460.0,0.00021917,3]
[372134285,1752534641516,-575.0,0.00021917,3]
[372134286,1752534641525,-1311.23,0.00021917,3]
[372134287,1752534641535,-2172.4,0.00021917,3]
[372134288,1752534641544,-460.0,0.00021917,3]
[372134289,1752534641553,-460.0,0.00021917,3]
[372134290,1752534641563,-1209.98,0.00021917,3]
[372134291,1752534641572,-315.39447143,0.00021917,3]
[372134292,1752534641581,-484.98,0.00021917,3]
[372134293,1752534641590,-597.1,0.00021917,3]
[372134294,1752534641599,-460.0,0.00021917,3]
[372134295,1752534641609,-460.0,0.00021917,3]
[372134296,1752534641619,-460.0,0.00021917,3]
[372134297,1752534641629,-2206.19,0.00021917,3]
[372134298,1752534641639,-460.0,0.00021917,3]
[372134299,1752534641648,-460.0,0.00021917,3]
[372134300,1752534641658,-460.0,0.00021917,3]
[372134301,1752534641668,-12600.81778503,0.00021917,3]
[372134302,1752534641679,-460.0,0.00021917,3]
[372134303,1752534641689,-460.0,0.00021917,3]
[372134304,1752534641698,-460.0,0.00021917,3]
[372134305,1752534641709,-460.0,0.00021917,3]
[372134306,1752534641721,-460.0,0.00021917,3]
[372134307,1752534641731,-460.0,0.00021917,3]
[372134308,1752534641740,-460.0,0.00021917,3]
[372134309,1752534641750,-460.0,0.00021917,3]
[372134310,1752534641760,-463.95,0.00021917,3]
[372134311,1752534641771,-650.39,0.00021917,3]
[372134312,1752534641782,-460.0,0.00021917,3]
[372134313,1752534641791,-460.0,0.00021917,3]
[372134314,1752534641801,-1600.54,0.00021917,3]
[372134315,1752534641811,-460.0,0.00021917,3]
[372134316,1752534641820,-460.0,0.00021917,3]
[372134317,1752534641830,-460.0,0.00021917,3]
[372134318,1752534641840,-460.0,0.00021917,3]
[372134319,1752534641851,-460.0,0.00021917,3]
[372134320,1752534641862,-2089.15,0.00021917,3]
[372134321,1752534641873,-460.0,0.00021917,3]
[372134322,1752534641885,-460.0,0.00021917,3]
[372134323,1752534641895,-556.43091798,0.00021917,3]
[372134324,1752534641906,-763.82,0.00021917,3]
[372134325,1752534641916,-506.19,0.00021917,3]
[372134326,1752534641926,-460.0,0.00021917,3]
[372134327,1752534641935,-460.0,0.00021917,3]
[372134328,1752534641946,-460.0,0.00021917,3]
[372134329,1752534641955,-460.0,0.00021917,3]
[372134330,1752534641965,-460.0,0.00021917,3]
[372134331,1752534641976,-460.0,0.00021917,3]
[372134332,1752534641986,-2431.7,0.00021917,3]
[372134333,1752534641995,-460.0,0.00021917,3]
[372134334,1752534642004,-460.0,0.00021917,3]
[372134335,1752534642014,-460.0,0.00021917,3]
[372134336,1752534642024,-460.0,0.00021917,3]
[372134337,1752534642034,-222.13294024,0.00021917,3]
[372134338,1752534642043,-3783.15,0.00021917,3]
[372134339,1752534642053,-460.0,0.00021917,3]
[372134340,1752534642063,-460.0,0.00021917,3]
[372134341,1752534642073,-460.0,0.00021917,3]
[372134342,1752534642083,-529.91,0.00021917,3]
[372134343,1752534642092,-460.0,0.00021917,3]
[372134344,1752534642103,-460.0,0.00021917,3]
[372134345,1752534642113,-460.0,0.00021917,3]
[372134346,1752534642123,-570.72,0.00021917,3]
[372134347,1752534642133,-460.0,0.00021917,3]
[372134348,1752534642142,-460.0,0.00021917,3]
[372134349,1752534642152,-460.0,0.00021917,3]
[372134350,1752534642161,-460.0,0.00021917,3]
[372134351,1752534642171,-460.0,0.00021917,3]
[372134352,1752534642181,-934.96,0.00021917,3]
[372134353,1752534642191,-460.0,0.00021917,3]
[372134354,1752534642202,-460.0,0.00021917,3]
[372134355,1752534642212,-460.0,0.00021917,3]
[372134356,1752534642222,-460.0,0.00021917,3]
[372134357,1752534642233,-460.0,0.00021917,3]
[372134358,1752534642242,-460.0,0.00021917,3]
[372134359,1752534642253,-460.0,0.00021917,3]
[372134360,1752534642263,-460.0,0.00021917,3]
[372134361,1752534642274,-1627.94,0.00021917,3]
[372134362,1752534642286,-528.07,0.00021917,3]
[372134363,1752534642295,-460.0,0.00021917,3]
[372134364,1752534642304,-460.0,0.00021917,3]
[372134365,1752534642314,-460.0,0.00021917,3]
[372134366,1752534642323,-150.0,0.00021918,2]
[372134367,1752534642332,-574.56690603,0.00021934,6]
[372134368,1752534642342,-800.0,0.00021935,2]
[372134369,1752534642351,-504.12455157,0.00021973,2]
[372134370,1752534642359,-19730.59,0.00022,7]
[372134371,1752534642368,-160.0,0.00022,3]
[372134372,1752534642378,-151.0,0.00022,2]
[372134373,1752534642388,-464.0,0.00022,2]
[372134374,1752534642397,-160.0,0.00022076,2]
[372134375,1752534642406,-574.56690603,0.00022107,6]
[372134376,1752534642415,-2000.0,0.00022116,2]
[372134377,1752534642425,-1004.3431761,0.00022116,2]
[372134378,1752534642435,-150.0,0.00022173,2]
[372134379,1752534642446,-500.0,0.00022173,2]
[372134380,1752534642457,-500.0,0.00022173,2]
[372134381,1752534642466,-500.0,0.00022173,2]
[372134382,1752534642475,-388.49249564,0.0002219,2]
[372134383,1752534642484,-500.0,0.0002219,2]
[372134384,1752534642495,-549.98689858,0.0002219,2]
[372134385,1752534642504,-500.0,0.0002219,2]
[372134386,1752534642513,-516.14667027,0.0002219,2]
[372134387,1752534642524,-460.0,0.00022191,3]
[372134388,1752534642535,-460.0,0.00022191,3]
[372134389,1752534642544,-460.0,0.00022191,3]
[372134390,1752534642554,-460.0,0.00022191,3]
[372134391,1752534642564,-460.0,0.00022191,3]
[372134392,1752534642573,-460.0,0.00022191,3]
[372134393,1752534642582,-460.0,0.00022191,3]
[372134394,1752534642591,-460.0,0.00022191,3]
[372134395,1752534642600,-481.84046225,0.00022191,3]
[372134396,1752534642610,-460.0,0.00022191,3]
[372134397,1752534642619,-460.0,0.00022191,3]
[372134398,1752534642628,-460.0,0.00022191,3]
[372134399,1752534642637,-460.0,0.00022191,3]
[372134400,1752534642647,-460.0,0.00022191,3]
[372134401,1752534642656,-460.0,0.00022191,3]
[372134402,1752534642665,-460.0,0.00022191,3]
[372134403,1752534642674,-460.0,0.00022191,3]
[372134404,1752534642683,-460.0,0.00022191,3]
[372134405,1752534642693,-460.0,0.00022191,3]
[372134406,1752534642702,-460.0,0.00022191,3]
[372134407,1752534642712,-389.5,0.00022191,3]
[372134408,1752534642721,-791.35,0.00022191,3]
[372134409,1752534642730,-283.69647492,0.00022191,3]
[372134410,1752534642739,-460.0,0.00022191,3]
[372134411,1752534642749,-460.0,0.00022191,3]
[372134412,1752534642758,-460.0,0.00022191,3]
[372134413,1752534642767,-460.0,0.00022191,3]
[372134414,1752534642776,-460.0,0.00022191,3]
[372134415,1752534642786,-460.0,0.00022191,3]
[372134416,1752534642795,-460.0,0.00022191,3]
[372134418,1752534642805,-550.24,0.00022191,3]
[372134419,1752534642814,-460.0,0.00022191,3]
[372134420,1752534642824,-460.0,0.00022191,3]
[372134421,1752534642833,-460.0,0.00022191,3]
[372134422,1752534642843,-460.0,0.00022191,3]
[372134424,1752534642852,-520.24,0.00022191,3]
[372134425,1752534642861,-460.0,0.00022191,3]
[372134426,1752534642870,-465.16762024,0.00022191,3]
[372134428,1752534642880,-573.24,0.00022191,3]
[372134430,1752534642890,-460.0,0.00022191,3]
[372134431,1752534642899,-460.0,0.00022191,3]
[372134432,1752534642909,-574.12,0.00022191,3]
[372134433,1752534642918,-460.0,0.00022191,3]
[372134434,1752534642927,-460.0,0.00022191,3]
[372134435,1752534642937,-460.0,0.00022191,3]
[372134436,1752534642946,-460.0,0.00022191,3]
[372134437,1752534642956,-460.0,0.00022191,3]
[372134438,1752534642966,-555.04,0.00022191,3]
[372134439,1752534642975,-460.0,0.00022191,3]
[372134440,1752534642985,-460.0,0.00022191,3]
[372134441,1752534642995,-470.46,0.00022191,3]
[372134442,1752534643005,-541.21173746,0.00022191,3]
[372134443,1752534643015,-460.0,0.00022191,3]
[372134444,1752534643024,-460.0,0.00022191,3]
[372134445,1752534643034,-460.0,0.00022191,3]
[372134446,1752534643044,-460.0,0.00022191,3]
[372134447,1752534643054,-3683.91,0.00022191,3]
[372134448,1752534643063,-460.0,0.00022191,3]
[372134449,1752534643073,-193.8,0.00022191,3]
[372134450,1752534643083,-460.0,0.00022191,3]
[372134451,1752534643092,-460.0,0.00022191,3]
[372134452,1752534643102,-460.0,0.00022191,3]
[372134453,1752534643111,-460.0,0.00022191,3]
[372134454,1752534643120,-204.48,0.00022191,3]
[372134456,1752534643131,-1533.52,0.00022191,3]
[372134457,1752534643140,-460.0,0.00022191,3]
[372134458,1752534643150,-460.0,0.00022191,3]
[372134459,1752534643159,-460.0,0.00022191,3]
[372134460,1752534643169,-733.97,0.00022191,3]
[372134461,1752534643178,-460.0,0.00022191,3]
[372134462,1752534643188,-878.5,0.00022191,3]
[372134463,1752534643197,-460.0,0.00022191,3]
[372134464,1752534643304,-460.0,0.00022191,3]
[372134465,1752534643314,-505.09,0.00022191,3]
[372134466,1752534643324,-460.0,0.00022191,3]
[372134467,1752534643334,-460.0,0.00022191,3]
[372134468,1752534643344,-460.0,0.00022191,3]
[372134469,1752534643353,-460.0,0.00022191,3]
[372134470,1752534643363,-460.0,0.00022191,3]
[372134472,1752534643372,-460.0,0.00022191,3]
[372134474,1752534643382,-460.0,0.00022191,3]
[372134476,1752534643391,-460.0,0.00022191,3]
[372134477,1752534643400,-460.0,0.00022191,3]
[372134479,1752534643410,-1417.69,0.00022191,3]
[372134480,1752534643419,-2467.3,0.00022191,3]
[372134481,1752534643428,-497.63,0.00022191,3]
[372134482,1752534643437,-460.0,0.00022191,3]
[372134483,1752534643451,-460.0,0.00022191,3]
[372134484,1752534643460,-460.0,0.00022191,3]
[372134485,1752534643470,-998.05,0.00022191,3]
[372134486,1752534643481,-460.0,0.00022191,3]
[372134487,1752534643494,-460.0,0.00022191,3]
[372134488,1752534643504,-460.0,0.00022191,3]
[372134489,1752534643514,-460.0,0.00022191,3]
[372134490,1752534643526,-679.45,0.00022191,3]
[372134491,1752534643537,-460.0,0.00022191,3]
[372134492,1752534643547,-460.0,0.00022191,3]
[372134493,1752534643556,-575.0,0.00022191,3]
[372134494,1752534643567,-1311.23,0.00022191,3]
[372134495,1752534643576,-2172.4,0.00022191,3]
[372134496,1752534643586,-460.0,0.00022191,3]
[372134497,1752534643596,-1209.98,0.00022191,3]
[372134498,1752534643606,-484.98,0.00022191,3]
[372134499,1752534643615,-597.1,0.00022191,3]
[372134500,1752534643626,-460.0,0.00022191,3]
[372134501,1752534643636,-460.0,0.00022191,3]
[372134502,1752534643647,-1158.48874781,0.00022191,3]
[372134503,1752534644322,-460.0,0.00021917,3]
[372134504,1752534644333,-40.0,0.00021917,3]
[372134505,1752534645355,-420.0,0.00021917,3]
[372134506,1752534645365,-460.0,0.00021917,3]
[372134507,1752534645374,-356.92766861,0.00021917,3]
[372134508,1752534645386,-103.07233139,0.00021917,3]
[372134509,1752534645395,-460.0,0.00021917,3]
[372134510,1752534645404,-460.0,0.00021917,3]
[372134511,1752534645413,-460.0,0.00021917,3]
[372134512,1752534645423,-460.0,0.00021917,3]
[372134513,1752534645432,-460.0,0.00021917,3]
[372134514,1752534645444,-460.0,0.00021917,3]
[372134515,1752534645455,-6309.63064487,0.00022051,2]
[372134516,1752534645467,-3273.38836995,0.00022051,2]
[372134517,1752534645477,-1047.70125219,0.00022191,3]
[372134518,1752534645489,-460.0,0.00022191,3]
[372134519,1752534645498,-460.0,0.00022191,3]
[372134520,1752534645508,-460.0,0.00022191,3]
[372134521,1752534645518,-460.0,0.00022191,3]
[372134522,1752534645527,-460.0,0.00022191,3]
[372134523,1752534645537,-460.0,0.00022191,3]
[372134524,1752534645547,-460.0,0.00022191,3]
[372134525,1752534645555,-463.95,0.00022191,3]
[372134526,1752534645565,-650.39,0.00022191,3]
[372134527,1752534645574,-460.0,0.00022191,3]
[372134528,1752534645583,-1600.54,0.00022191,3]
[372134529,1752534645592,-460.0,0.00022191,3]
[372134530,1752534645602,-460.0,0.00022191,3]
[372134531,1752534645611,-460.0,0.00022191,3]
[372134532,1752534645620,-460.0,0.00022191,3]
[372134533,1752534645628,-2089.15,0.00022191,3]
[372134534,1752534645638,-460.0,0.00022191,3]
[372134535,1752534645647,-460.0,0.00022191,3]
[372134536,1752534645656,-763.82,0.00022191,3]
[372134537,1752534645665,-506.19,0.00022191,3]
[372134538,1752534645674,-460.0,0.00022191,3]
[372134539,1752534645683,-460.0,0.00022191,3]
[372134540,1752534645692,-2431.7,0.00022191,3]
[372134541,1752534645701,-460.0,0.00022191,3]
[372134542,1752534645711,-460.0,0.00022191,3]
[372134543,1752534645720,-460.0,0.00022191,3]
[372134544,1752534645729,-3783.15,0.00022191,3]
[372134545,1752534645738,-460.0,0.00022191,3]
[372134546,1752534645747,-460.0,0.00022191,3]
[372134547,1752534645756,-529.91,0.00022191,3]
[372134548,1752534645765,-460.0,0.00022191,3]
[372134549,1752534645774,-570.72,0.00022191,3]
[372134550,1752534645785,-460.0,0.00022191,3]
[372134551,1752534645794,-460.0,0.00022191,3]
[372134552,1752534645803,-460.0,0.00022191,3]
[372134553,1752534645812,-934.96,0.00022191,3]
[372134554,1752534645821,-460.0,0.00022191,3]
[372134555,1752534645830,-460.0,0.00022191,3]
[372134556,1752534645840,-1627.94,0.00022191,3]
[372134558,1752534645849,-528.07,0.00022191,3]
[372134560,1752534645858,-460.0,0.00022191,3]
[372134562,1752534645867,-460.0,0.00022191,3]
[372134564,1752534645876,-460.0,0.00022191,3]
[372134566,1752534645885,-460.0,0.00022191,3]
[372134567,1752534645894,-460.0,0.00022191,3]
[372134568,1752534645903,-460.0,0.00022191,3]
[372134569,1752534645913,-460.0,0.00022191,3]
[372134570,1752534645922,-460.0,0.00022191,3]
[372134571,1752534645931,-460.0,0.00022191,3]
[372134572,1752534645940,-460.0,0.00022191,3]
[372134573,1752534645949,-464.0,0.00022192,7]
[372134574,1752534645958,-1223.93,0.0002223,10]
[372134575,1752534645968,-3404.57277499,0.0002224,2]
[372134576,1752534645980,-574.7999999,0.0002224,2]
[372134578,1752534646478,-18247.87490518,0.0002224,2]
[372134579,1752534646491,-4317.20623728,0.0002224,2]
[372134580,1752534646500,-574.56690603,0.00022279,6]
[372134581,1752534646510,-1416.99393508,0.00022302,2]
[372134586,1752534651482,200.354757,0.00013699,2]
[372134587,1752534665066,711.66540338,0.00019178,2]
[372134599,1752535129806,11337.209999,0.00025182,120]
[372134600,1752535156065,336.95943187,0.00026137,120]
[372134619,1752535653594,-316.57250055,0.00019075,2]
[372134620,1752535653617,-382.47878561,0.00019078,2]
[372134621,1752535653638,-160.0,0.00019162,2]
[372134622,1752535653660,-160.0,0.00019162,2]
[372134623,1752535653685,-160.0,0.00019162,2]
[372134624,1752535653706,-160.0,0.00019163,2]
[372134625,1752535653730,-468.75,0.00019163,2]
[372134626,1752535653751,-160.0,0.00019164,2]
[372134627,1752535653775,-160.0,0.00019164,2]
[372134628,1752535653799,-300.0,0.0001917,2]
[372134629,1752535653820,-5101.43751078,0.00019171,2]
[372134630,1752535666440,190.337019,0.00013699,2]
[372134666,1752535745103,-300.0,0.00016999,2]
[372134667,1752535745124,-1660.51299727,0.00017,2]
[372134669,1752535750169,-30769.98318811,0.00017,2]
[372134670,1752535750191,-2082.00166408,0.000176,2]
[372134671,1752535750213,-39155.48959971,0.00018,2]
[372134673,1752535754147,-1557.13507116,0.00018,2]
[372134674,1752535754168,-41268.39715647,0.0001821,2]
[372134676,1752535756189,-77103.12745352,0.0001821,2]
[372134677,1752535756211,-420.0,0.00018567,2]
[372134678,1752535756232,-211.0483337,0.00019071,2]
[372134679,1752535756254,-13661.05017983,0.00019171,2]
[372134680,1752535756323,-31237.51230939,0.00019171,2]
[372134681,1752535756344,-720.0,0.00019171,2]
[372134682,1752535756538,-1200.0,0.00019172,2]
[372134683,1752535756559,-300.0,0.00019173,2]
[372134684,1752535756579,-300.0,0.00019173,2]
[372134685,1752535756598,-84.42791862,0.00019178,2]
[372134687,1752535758385,-4203.906678,0.00019178,2]
[372134688,1752535758430,-666.0,0.00019178,2]
[372134689,1752535758474,-564.39,0.000192,2]
[372134690,1752535758518,-100000.0,0.00019329,2]
[372134691,1752535758564,-160.0,0.00019621,2]
[372134692,1752535758610,-2845.0,0.000198,7]
[372134693,1752535758663,-895.72251629,0.000199,2]
[372134694,1752535758707,-1056.28595801,0.00019901,2]
[372134695,1752535758753,-57865.02117927,0.00019989,2]
[372134704,1752535773304,468.75,0.00019053,2]
[372134715,1752535798198,214.33456592,0.00019053,2]
[372134723,1752535826595,289.87386237,0.00018958,2]
[372134728,1752535832692,-13.15644066,0.00018958,2]
[372134729,1752535832702,-303.03030303,0.00019147,2]
[372134730,1752535832711,-303.03030303,0.00019337,2]
[372134733,1752535832721,-303.03030303,0.00019526,2]
[372134735,1752535832730,-37.80848179,0.00019716,2]
[372134737,1752535832743,-265.22182124,0.00019716,2]
[372134738,1752535832752,-341.62069965,0.00019906,4]
[372134739,1752535832764,-112.9247549,0.00019906,4]
[372134740,1752535832774,-300.0,0.00019988,2]
[372134741,1752535832783,-394.4956482,0.00019989,2]
[372134742,1752535832795,-312.89609684,0.00019989,2]
[372134743,1752535832816,-25303.95757148,0.00019989,2]
[372134744,1752535832827,-9981.9174843,0.0002,2]
[372134745,1752535832836,-8175.50673763,0.0002,2]
[372134746,1752535832846,-3191.45502361,0.0002,2]
[372134747,1752535832856,-362.37218603,0.0002,2]
[372134748,1752535832866,-52351.00060922,0.0002,2]
[372134749,1752535832876,-2183.81486075,0.0002,2]
[372134750,1752535832885,-454.54545455,0.00020095,4]
[372134751,1752535832895,-895.72251615,0.00020107,2]
[372134752,1752535832908,-190.337019,0.00020187,2]
[372134753,1752535832918,-454.54545455,0.00020285,4]
[372134754,1752535832928,-895.72251615,0.00020314,3]
[372134755,1752535832939,-454.54545455,0.00020474,4]
[372134756,1752535832948,-895.72251615,0.00020521,3]
[372134757,1752535832958,-448.971,0.0002066,2]
[372134758,1752535832967,-454.54545455,0.00020664,4]
[372134759,1752535833144,-5000.0,0.000207,2]
[372134761,1752535833155,-895.72251615,0.00020728,3]
[372134763,1752535833164,-895.72251615,0.00020934,4]
[372134765,1752535833174,-564.39,0.00021,2]
[372134767,1752535833184,-895.72251615,0.00021141,4]
[372134768,1752535833193,-895.72251615,0.00021348,5]
[372134769,1752535833203,-800.0,0.00021382,2]
[372134771,1752535833213,-414.025877,0.00021425,2]
[372134772,1752535833222,-1096.96402626,0.000215,4]
[372134773,1752535833232,-838.70323114,0.00021518,2]
[372134774,1752535833241,-160.0,0.00021518,2]
[372134775,1752535833250,-895.72251615,0.00021555,5]
[372134776,1752535833259,-12600.81778503,0.0002157,2]
[372134777,1752535833269,-525.46609069,0.0002157,2]
[372134778,1752535833279,-215.47013733,0.0002157,2]
[372134779,1752535833288,-230.73061749,0.0002157,2]
[372134780,1752535833298,-160.0,0.0002157,2]
[372134781,1752535833308,-800.0,0.00021579,2]
[372134782,1752535833318,-300.0,0.00021627,2]
[372134783,1752535833328,-895.72251615,0.00021762,5]
[372134784,1752535833338,-420.0,0.00021765,2]
[372134785,1752535833348,-36473.13102647,0.00021817,2]
[372134786,1752535833358,-613.41331258,0.000219,2]
[372134787,1752535833368,-200.0,0.00021917,3]
[372134788,1752535833377,-460.0,0.00021917,3]
[372134789,1752535833387,-460.0,0.00021917,3]
[372134790,1752535833397,-460.0,0.00021917,3]
[372134791,1752535833407,-460.0,0.00021917,3]
[372134792,1752535833417,-460.0,0.00021917,3]
[372134793,1752535833427,-460.0,0.00021917,3]
[372134794,1752535833437,-460.0,0.00021917,3]
[372134795,1752535833446,-460.0,0.00021917,3]
[372134796,1752535833456,-460.0,0.00021917,3]
[372134797,1752535833466,-460.0,0.00021917,3]
[372134798,1752535833475,-460.0,0.00021917,3]
[372134799,1752535833485,-460.86018815,0.00021917,3]
[372134800,1752535833494,-460.0,0.00021917,3]
[372134801,1752535833503,-554.27069136,0.00021917,3]
[372134802,1752535833513,-460.0,0.00021917,3]
[372134803,1752535833522,-460.0,0.00021917,3]
[372134804,1752535833532,-460.0,0.00021917,3]
[372134805,1752535833542,-460.0,0.00021917,3]
[372134806,1752535833551,-460.0,0.00021917,3]
[372134807,1752535833561,-460.0,0.00021917,3]
[372134808,1752535833571,-262.36707031,0.00021917,3]
[372134809,1752535833580,-460.0,0.00021917,3]
[372134810,1752535833590,-460.0,0.00021917,3]
[372134811,1752535833599,-460.0,0.00021917,3]
[372134812,1752535833608,-460.0,0.00021917,3]
[372134813,1752535833618,-460.0,0.00021917,3]
[372134814,1752535833627,-460.0,0.00021917,3]
[372134815,1752535833637,-460.0,0.00021917,3]
[372134816,1752535833647,-460.0,0.00021917,3]
[372134817,1752535833656,-460.0,0.00021917,3]
[372134818,1752535833666,-413.31971394,0.00021917,3]
[372134819,1752535833675,-460.0,0.00021917,3]
[372134820,1752535833685,-460.0,0.00021917,3]
[372134821,1752535833695,-460.0,0.00021917,3]
[372134822,1752535833704,-460.0,0.00021917,3]
[372134823,1752535833714,-460.0,0.00021917,3]
[372134824,1752535833724,-209.48986205,0.00021917,3]
[372134825,1752535833733,-460.0,0.00021917,3]
[372134826,1752535833743,-460.0,0.00021917,3]
[372134827,1752535833752,-460.0,0.00021917,3]
[372134828,1752535833762,-461.24071732,0.00021917,3]
[372134829,1752535833771,-460.0,0.00021917,3]
[372134830,1752535833781,-460.0,0.00021917,3]
[372134831,1752535833791,-460.0,0.00021917,3]
[372134832,1752535833801,-460.0,0.00021917,3]
[372134833,1752535833810,-460.0,0.00021917,3]
[372134834,1752535833819,-460.0,0.00021917,3]
[372134835,1752535833833,-460.0,0.00021917,3]
[372134836,1752535833842,-460.0,0.00021917,3]
[372134837,1752535833852,-460.0,0.00021917,3]
[372134838,1752535833861,-460.0,0.00021917,3]
[372134839,1752535833871,-460.0,0.00021917,3]
[372134840,1752535833881,-460.0,0.00021917,3]
[372134841,1752535833891,-460.0,0.00021917,3]
[372134842,1752535833904,-460.0,0.00021917,3]
[372134843,1752535833913,-460.0,0.00021917,3]
[372134844,1752535833924,-460.0,0.00021917,3]
[372134845,1752535833934,-478.80915902,0.00021917,3]
[372134846,1752535833943,-460.0,0.00021917,3]
[372134847,1752535833953,-460.0,0.00021917,3]
[372134848,1752535833963,-460.0,0.00021917,3]
[372134849,1752535833972,-460.0,0.00021917,2]
[372134850,1752535833983,-460.0,0.00021917,3]
[372134851,1752535833994,-460.0,0.00021917,3]
[372134852,1752535834004,-460.0,0.00021917,3]
[372134853,1752535834014,-460.0,0.00021917,3]
[372134855,1752535834023,-460.0,0.00021917,3]
[372134856,1752535834032,-883.99,0.00021917,3]
[372134857,1752535834042,-460.0,0.00021917,3]
[372134858,1752535834051,-460.0,0.00021917,3]
[372134859,1752535834061,-460.0,0.00021917,3]
[372134860,1752535834072,-460.0,0.00021917,3]
[372134861,1752535834081,-460.0,0.00021917,3]
[372134862,1752535834091,-460.0,0.00021917,3]
[372134863,1752535834100,-460.0,0.00021917,3]
[372134864,1752535834110,-460.0,0.00021917,3]
[372134865,1752535834121,-460.0,0.00021917,3]
[372134866,1752535834130,-596.01132318,0.00021917,3]
[372134867,1752535834140,-460.0,0.00021917,3]
[372134868,1752535834149,-460.0,0.00021917,3]
[372134869,1752535834159,-460.0,0.00021917,3]
[372134870,1752535834168,-460.0,0.00021917,3]
[372134871,1752535834177,-479.80271025,0.00021917,3]
[372134872,1752535834187,-460.0,0.00021917,3]
[372134873,1752535834196,-460.0,0.00021917,3]
[372134874,1752535834206,-460.0,0.00021917,3]
[372134875,1752535834215,-460.0,0.00021917,3]
[372134876,1752535834224,-460.0,0.00021917,3]
[372134877,1752535834234,-460.0,0.00021917,3]
[372134878,1752535834243,-460.0,0.00021917,3]
[372134879,1752535834253,-460.0,0.00021917,3]
[372134880,1752535834264,-460.0,0.00021917,3]
[372134881,1752535834274,-460.0,0.00021917,3]
[372134882,1752535834284,-460.0,0.00021917,3]
[372134883,1752535834293,-480.2,0.00021917,3]
[372134884,1752535834304,-460.0,0.00021917,3]
[372134885,1752535834316,-460.0,0.00021917,3]
[372134886,1752535834326,-460.0,0.00021917,3]
[372134887,1752535834336,-460.0,0.00021917,3]
[372134888,1752535834346,-460.0,0.00021917,3]
[372134889,1752535834357,-196.46573234,0.00021917,3]
[372134890,1752535834367,-460.0,0.00021917,3]
[372134891,1752535834378,-460.0,0.00021917,3]
[372134892,1752535834388,-460.0,0.00021917,3]
[372134893,1752535834398,-460.0,0.00021917,3]
[372134894,1752535834408,-460.0,0.00021917,3]
[372134895,1752535834417,-460.0,0.00021917,3]
[372134896,1752535834427,-460.0,0.00021917,3]
[372134897,1752535834436,-460.0,0.00021917,3]
[372134898,1752535834446,-460.0,0.00021917,3]